fUSD/lending_fUSD_20240626
["ID","MTS","AMOUNT","RATE_DAILY","PERIOD"]
[330441408,1719411042149,-203.23379895,0.00021873,3]
[330441409,1719411042160,-3960.45546499,0.00021879,3]
[330441410,1719411042169,-3960.45546499,0.0002188,3]
[330441411,1719411042179,-286.19949374,0.00021881,2]
[330441412,1719411042190,-3960.45546499,0.00021882,3]
[330441413,1719411042200,-203.94857317,0.00021882,2]
[330441414,1719411042210,-191.06783404,0.00021882,4]
[330441415,1719411042219,-5800.0,0.00021883,2]
[330441416,1719411042228,-451.4128,0.00021889,2]
[330441417,1719411042238,-589.74225262,0.00021889,2]
[330441418,1719411042248,-51485.9210449,0.0002189,3]
[330441419,1719411042257,-609.70139685,0.0002189,3]
[330441420,1719411042266,-1285.50884715,0.00021891,2]
[330441421,1719411042276,-183.57425054,0.00021891,2]
[330441422,1719411042286,-5800.0,0.00021892,2]
[330441423,1719411042296,-12847.56894556,0.000219,2]
[330441424,1719411042306,-7496.95000324,0.000219,2]
[330441425,1719411042355,-888.69762129,0.000219,2]
[330441426,1719411042366,-12377.778,0.000219,2]
[330441427,1719411042378,-2648.45147442,0.000219,2]
[330441428,1719411042388,-5800.0,0.000219,2]
[330441429,1719411042397,-2243.81837853,0.000219,2]
[330441430,1719411042407,-6407.73014705,0.000219,2]
[330441431,1719411042418,-359.44640036,0.000219,2]
[330441432,1719411042453,-708.92511709,0.000219,2]
[330441433,1719411042465,-1268.97513265,0.000219,2]
[330441434,1719411042732,-1194.48351368,0.000219,2]
[330441435,1719411042744,-750.72000001,0.000219,2]
[330441436,1719411042755,-1156.68,0.000219,2]
[330441446,1719411043558,-197.91,0.0002188,2]
[330441447,1719411043568,-197.91,0.0002189,2]
[330441448,1719411043577,-683.5491492,0.000219,2]
[330441449,1719411043818,-1724.24629584,0.00014,2]
[330441467,1719411046613,-357.57681637,0.00014,2]
[330441468,1719411046864,-1041.17810398,0.00014,2]
[330441470,1719411046876,-9789.77510328,0.00014,2]
[330441495,1719411752351,155.0,0.00011237,2]
[330441496,1719411758587,618.08409068,0.00014,10]
[330441497,1719411758608,95.70590932,0.00014,10]
[330441504,1719412006155,-155.00562948,0.00012347,2]
[330441507,1719412157110,-308.06506777,0.00012027,2]
[330441508,1719412157131,-2.10849437,0.00012347,2]
[330441516,1719412232616,-150.0,0.00012346,2]
[330441520,1719412232627,-261.13033745,0.00012347,2]
[330441522,1719412232637,-1869.44680014,0.00012347,2]
[330441549,1719412232895,-679.73,0.00012347,2]
[330441550,1719412232906,-17759.01682278,0.00012347,2]
[330441551,1719412232917,-305.25433982,0.00012347,2]
[330441552,1719412232926,-159.36150928,0.00013394,2]
[330441553,1719412232936,-5742.64314854,0.00013394,2]
[330441554,1719412232945,-802.34777736,0.0001372,2]
[330441555,1719412232954,-2199.43685472,0.00013913,2]
[330441556,1719412232963,-1012.87391772,0.00013914,2]
[330441557,1719412232972,-307.975,0.00013999,2]
[330441558,1719412232981,-499.99,0.00014436,2]
[330441559,1719412232991,-717.18626309,0.00014443,2]
[330441560,1719412233000,-19608.51382202,0.00014444,2]
[330441561,1719412233009,-1798.73942601,0.00014445,2]
[330441562,1719412233019,-1251.41053276,0.00014964,2]
[330441563,1719412233028,-518.04242089,0.00014965,2]
[330441564,1719412233037,-226.97511983,0.00014999,2]
[330441565,1719412233046,-5000.0,0.00015,2]
[330441566,1719412233056,-3965.70350846,0.00015,2]
[330441567,1719412233065,-299.99,0.00016567,4]
[330441568,1719412233074,-477.99,0.00017597,2]
[330441569,1719412233083,-2000.0,0.00018,3]
[330441570,1719412233093,-1905.0,0.00018,3]
[330441571,1719412233102,-11753.0,0.000185,5]
[330441572,1719412233111,-2000.0,0.00019,7]
[330441573,1719412233121,-18220.96677571,0.00019299,2]
[330441574,1719412233130,-18220.96677571,0.00019299,2]
[330441575,1719412233140,-1568.70580525,0.000193,2]
[330441576,1719412233152,-1371.40869475,0.000193,2]
[330441577,1719412233161,-250.0,0.00019362,2]
[330441579,1719412233172,-1000.0,0.00019412,2]
[330441581,1719412233181,-2000.0,0.00019447,3]
[330441582,1719412233190,-543.9,0.00019466,2]
[330441584,1719412233199,-4608.46579923,0.00019533,2]
[330441586,1719412233210,-2852.80510775,0.00019533,2]
[330441588,1719412233221,-1036.54118653,0.00019533,2]
[330441589,1719412233233,-353.79,0.00019533,2]
[330441590,1719412233244,-318.22790649,0.00019533,2]
[330441591,1719412233255,-250.0,0.00019697,2]
[330441592,1719412233264,-477.99,0.00019861,2]
[330441593,1719412233274,-1250.0,0.00021,2]
[330441594,1719412233283,-157.773893,0.00021088,2]
[330441595,1719412233292,-162.034297,0.00021088,2]
[330441596,1719412233302,-156.200212,0.00021088,2]
[330441597,1719412233311,-1067.0,0.0002111,2]
[330441598,1719412233321,-150.0,0.00021165,2]
[330441599,1719412233330,-150.0,0.00021178,2]
[330441600,1719412233339,-150.0,0.00021178,2]
[330441601,1719412233348,-150.0,0.00021178,2]
[330441602,1719412233358,-150.0,0.00021178,2]
[330441603,1719412233367,-150.0,0.00021178,2]
[330441604,1719412233376,-300.57,0.00021178,2]
[330441605,1719412233387,-300.82,0.00021178,2]
[330441606,1719412233395,-600.0,0.000212,7]
[330441607,1719412233405,-2446.0,0.00021272,2]
[330441608,1719412233416,-1300.0,0.000213,7]
[330441609,1719412233425,-2000.0,0.000214,7]
[330441610,1719412233434,-6221.87942226,0.00021499,2]
[330441611,1719412233443,-2700.0,0.000215,7]
[330441612,1719412233452,-3300.0,0.000216,7]
[330441613,1719412233462,-12962.5488,0.000216,2]
[330441614,1719412233471,-162.034297,0.00021615,2]
[330441615,1719412233480,-4713.24960871,0.00021643,2]
[330441616,1719412233489,-155.34,0.00021644,2]
[330441617,1719412233499,-955.39854,0.0002168,2]
[330441618,1719412233509,-600.0,0.000217,7]
[330441619,1719412233518,-864.3196,0.000217,2]
[330441620,1719412233527,-373.81877663,0.000217,2]
[330441621,1719412233536,-2500.0,0.000217,2]
[330441622,1719412233545,-318.28845821,0.000217,2]
[330441623,1719412233555,-373.81877661,0.00021729,2]
[330441624,1719412233564,-150.0,0.00021732,2]
[330441625,1719412233573,-150.0,0.00021743,2]
[330441626,1719412233582,-150.0,0.00021749,2]
[330441627,1719412233591,-150.0,0.00021751,2]
[330441628,1719412233600,-150.0,0.00021751,2]
[330441629,1719412233609,-150.0,0.00021755,2]
[330441630,1719412233619,-150.0,0.00021756,2]
[330441631,1719412233628,-188.28303004,0.00021756,2]
[330441632,1719412233638,-373.81877661,0.00021757,2]
[330441633,1719412233647,-150.0,0.00021758,2]
[330441634,1719412233657,-150.0,0.00021769,2]
[330441635,1719412233666,-491.61691634,0.00021771,2]
[330441636,1719412233675,-572.79685143,0.00021772,2]
[330441637,1719412233684,-150.0,0.00021772,2]
[330441638,1719412233693,-150.0,0.00021783,2]
[330441639,1719412233703,-373.81877661,0.00021786,2]
[330441640,1719412233713,-150.0,0.00021789,2]
[330441641,1719412233722,-3466.82043776,0.0002179,3]
[330441642,1719412233731,-787.94090939,0.00021799,2]
[330441643,1719412233740,-600.0,0.000218,7]
[330441644,1719412233750,-69494.27981446,0.000218,2]
[330441645,1719412233762,-6310.96790771,0.000218,2]
[330441646,1719412233773,-7240.97021544,0.000218,2]
[330441647,1719412233784,-739.69628748,0.000218,2]
[330441648,1719412233796,-968.08911481,0.000218,2]
[330441649,1719412233807,-15245.9966601,0.000218,2]
[330441650,1719412233816,-995.8186,0.000218,2]
[330441651,1719412233826,-1000.0,0.000218,2]
[330441652,1719412233838,-190080.43297883,0.000218,2]
[330441653,1719412233848,-152.74124027,0.000218,2]
[330441654,1719412233858,-373.81877661,0.00021814,2]
[330441655,1719412233867,-572.79685143,0.00021815,2]
[330441656,1719412233878,-647.07170086,0.00021817,2]
[330441657,1719412233887,-150.0,0.00021818,2]
[330441658,1719412233896,-150.0,0.00021819,2]
[330441659,1719412233905,-200.0,0.00021822,2]
[330441660,1719412233916,-200.0,0.00021823,2]
[330441661,1719412233926,-1000.0,0.00021839,2]
[330441662,1719412233935,-1300.05766416,0.0002184,3]
[330441663,1719412233944,-373.81877661,0.00021843,2]
[330441664,1719412233953,-150.0,0.00021844,2]
[330441665,1719412233963,-150.0,0.00021849,2]
[330441666,1719412233972,-73878.08274412,0.0002185,2]
[330441667,1719412233982,-150.0,0.00021856,2]
[330441668,1719412233991,-572.79685143,0.00021857,2]
[330441669,1719412234001,-373.81877661,0.00021871,2]
[330441670,1719412234011,-150.0,0.00021883,2]
[330441671,1719412234020,-150.0,0.00021889,2]
[330441672,1719412234030,-243.88055874,0.0002189,3]
[330441673,1719412234040,-220.05,0.0002189,3]
[330441674,1719412234050,-600.0,0.000219,7]
[330441675,1719412234059,-110344.58213743,0.000219,2]
[330441676,1719412234072,-966.43463374,0.000219,2]
[330441677,1719412234084,-463.61871879,0.000219,2]
[330441678,1719412234096,-6827.34329163,0.000219,2]
[330441679,1719412234108,-1414.36815207,0.000219,2]
[330441687,1719412239275,-458.39071946,0.00013913,2]
[330441688,1719412239287,-597.23190739,0.00013913,2]
[330441689,1719412239300,-1000.89,0.00013913,2]
[330441690,1719412239313,-142.92422787,0.00013913,2]
[330441691,1719412239323,-226.97511983,0.00014965,2]
[330441692,1719412239334,-6221.87942226,0.00021299,2]
[330441693,1719412239344,-4474.05765399,0.00021599,2]
[330441694,1719412239357,-239.19195472,0.00021599,2]
[330441695,1719412239367,-242.18359595,0.00021799,2]
[330441696,1719412239378,-117453.1436063,0.000219,2]
[330441697,1719412239392,-307.9442,0.000219,2]
[330441698,1719412239403,-518.39535028,0.000219,2]
[330441699,1719412239413,-5495.14129275,0.000219,2]
[330441700,1719412239427,-2501.34418487,0.000219,2]
[330441701,1719412239440,-313.999999,0.000219,2]
[330441702,1719412239452,-7546.76633104,0.000219,2]
[330441703,1719412239462,-180.20700508,0.000219,2]
[330441704,1719412239473,-572.79685143,0.000219,2]
[330441705,1719412239484,-225.0,0.000219,2]
[330441706,1719412239495,-355.0,0.000219,2]
[330441707,1719412239506,-373.81877661,0.000219,2]
[330441708,1719412239516,-937.0,0.000219,2]
[330441709,1719412239526,-152.74124027,0.000219,2]
[330441710,1719412239537,-1170.35973729,0.000219,2]
[330441711,1719412239547,-225.0,0.000219,2]
[330441712,1719412239557,-14085.20422998,0.000219,2]
[330441713,1719412239569,-4972.4802686,0.000219,2]
[330441714,1719412239579,-150.0,0.00021901,2]
[330441715,1719412239590,-150.0,0.00021906,2]
[330441716,1719412239599,-150.0,0.00021907,2]
[330441717,1719412239609,-173.73231677,0.00021907,2]
[330441718,1719412239620,-150.0,0.00021908,2]
[330441719,1719412239631,-150.0,0.00021912,2]
[330441720,1719412239643,-578.92,0.00021918,2]
[330441721,1719412239654,-157.88,0.00021918,2]
[330441722,1719412239665,-150.0,0.00021942,2]
[330441723,1719412239675,-150.0,0.00021945,2]
[330441724,1719412239686,-150.0,0.0002195,2]
[330441725,1719412239696,-150.0,0.0002197,2]
[330441726,1719412239706,-150.0,0.00021973,2]
[330441727,1719412239718,-657.0,0.00021979,2]
[330441728,1719412239728,-5194.78741463,0.0002199,2]
[330441729,1719412239740,-4259.9738215,0.0002199,2]
[330441730,1719412239812,-2702.22081626,0.0002199,2]
[330441731,1719412239824,-261.75466599,0.0002199,2]
[330441748,1719412241141,-193.91,0.0002184,2]
[330441749,1719412241152,-193.91,0.0002189,2]
[330441750,1719412241162,-193.91,0.0002189,2]
[330441751,1719412241172,-193.91,0.0002189,2]
[330441752,1719412241182,-193.91,0.0002189,2]
[330441753,1719412241192,-3438.51508927,0.0002199,2]
[330441754,1719412241203,-365.82083811,0.0002199,3]
[330441755,1719412241212,-193.91,0.0002199,2]
[330441756,1719412241222,-151.87052139,0.00021992,2]
[330441757,1719412241232,-150.0,0.00021993,2]
[330441758,1719412241242,-227.90866278,0.00021997,2]
[330441759,1719412241252,-1686.93165592,0.00021998,2]
[330441760,1719412241262,-9080.8951318,0.00022,7]
[330441761,1719412241272,-11520.5981007,0.00022,4]
[330441762,1719412241284,-1720.67636963,0.00022,4]
[330441763,1719412241296,-400.07483383,0.00022,4]
[330441768,1719412241370,-193.91,0.0002199,2]
[330441769,1719412241379,-193.91,0.0002199,2]
[330441770,1719412241390,-193.91,0.0002199,2]
[330441771,1719412241400,-311.08073822,0.00022,4]
[330441772,1719412241411,-8889.91640812,0.00022,4]
[330441773,1719412241423,-26827.7554927,0.00022,4]
[330441774,1719412241435,-2612.27654001,0.00022,4]
[330441874,1719412243950,-655.0,0.000219,2]
[330441877,1719412243961,-512.53598902,0.000219,2]
[330441879,1719412243973,-1654.7624118,0.000219,2]
[330441881,1719412243983,-646.0,0.0002197,2]
[330441883,1719412243993,-193.91,0.0002199,2]
[330441885,1719412244003,-193.91,0.0002199,2]
[330441886,1719412244012,-193.91,0.0002199,2]
[330441887,1719412244022,-193.91,0.0002199,2]
[330441888,1719412244032,-193.91,0.0002199,2]
[330441889,1719412244041,-193.91,0.0002199,2]
[330441890,1719412244051,-193.91,0.0002199,2]
[330441891,1719412244059,-193.91,0.0002199,2]
[330441892,1719412244069,-193.91,0.0002199,2]
[330441893,1719412244079,-193.91,0.0002199,2]
[330441894,1719412244089,-193.91,0.0002199,2]
[330441895,1719412244099,-193.91,0.0002199,2]
[330441896,1719412244107,-193.91,0.0002199,2]
[330441897,1719412244117,-193.91,0.0002199,2]
[330441898,1719412244126,-193.91,0.0002199,2]
[330441899,1719412244135,-193.91,0.0002199,2]
[330441900,1719412244147,-193.91,0.0002199,2]
[330441901,1719412244156,-193.91,0.0002199,2]
[330441902,1719412244166,-193.91,0.0002199,2]
[330441903,1719412244175,-25542.16878972,0.00022,4]
[330441904,1719412244187,-6644.55524363,0.00022,4]
[330441905,1719412244198,-2123.95717,0.00022,4]
[330441906,1719412244209,-7290.45079688,0.00022,4]
[330441907,1719412244221,-748.724,0.00022,4]
[330441908,1719412244394,-193.91,0.0002199,2]
[330441909,1719412244403,-193.91,0.0002199,2]
[330441910,1719412244413,-193.91,0.0002199,2]
[330441911,1719412244425,-54377.09654384,0.00022,4]
[330441912,1719412244439,-7070.24685381,0.00022,4]
[330441913,1719412244452,-760.59262988,0.00022,4]
[330441914,1719412244464,-187500.0,0.00022,4]
[330441915,1719412244478,-884.18795845,0.00022,4]
[330441916,1719412244489,-1854.15830834,0.00022,4]
[330441917,1719412244500,-444.24779552,0.00022,4]
[330441918,1719412244512,-32820.61419723,0.00022,4]
[330441919,1719412244523,-7966.45742432,0.00022,4]
[330441944,1719412246879,-1012.87391772,0.00013912,2]
[330441947,1719412246888,-510.90883193,0.000219,2]
[330441949,1719412246902,-918.75679,0.000219,2]
[330441950,1719412247174,-1705.33083075,0.000219,2]
[330441951,1719412247185,-12903.43297769,0.000219,2]
[330441952,1719412247196,-907.5,0.000219,2]
[330441953,1719412247208,-250.10479714,0.000219,2]
[330441954,1719412247219,-12889.70002755,0.000219,2]
[330441955,1719412247230,-2197.79675111,0.000219,2]
[330441956,1719412247241,-17716.46899383,0.000219,2]
[330441957,1719412247250,-193.91,0.0002199,2]
[330441958,1719412247260,-193.91,0.0002199,2]
[330441959,1719412247268,-193.91,0.0002199,2]
[330441960,1719412247278,-193.91,0.0002199,2]
[330441961,1719412247287,-193.91,0.0002199,2]
[330441962,1719412247296,-193.91,0.0002199,2]
[330441963,1719412247305,-193.91,0.0002199,2]
[330441964,1719412247315,-193.91,0.0002199,2]
[330441965,1719412247324,-193.91,0.0002199,2]
[330441966,1719412247333,-193.91,0.0002199,2]
[330441967,1719412247343,-193.91,0.0002199,2]
[330441968,1719412247352,-193.91,0.0002199,2]
[330441969,1719412247363,-193.91,0.0002199,2]
[330441970,1719412247372,-193.91,0.0002199,2]
[330441971,1719412247381,-193.91,0.0002199,2]
[330441972,1719412247390,-193.91,0.0002199,2]
[330441973,1719412247403,-193.91,0.0002199,2]
[330441974,1719412247412,-193.91,0.0002199,2]
[330441975,1719412247422,-193.91,0.0002199,2]
[330441976,1719412247435,-193.91,0.0002199,2]
[330441977,1719412247444,-193.91,0.0002199,2]
[330441978,1719412247453,-193.91,0.0002199,2]
[330441979,1719412247463,-193.91,0.0002199,2]
[330441980,1719412247472,-848709.51943848,0.00022,4]
[330441983,1719412247484,-2123.07352372,0.00022,4]
[330441986,1719412247608,-193.91,0.0002199,2]
[330441987,1719412247618,-193.91,0.0002199,2]
[330441988,1719412247627,-247.43,0.00022,4]
[330441989,1719412247638,-560.52287682,0.00022,4]
[330441990,1719412247653,-476.24390824,0.00022,4]
[330441991,1719412247664,-19341.83731985,0.00022,4]
[330441992,1719412247675,-3007.43990326,0.00022,4]
[330441998,1719412445231,8902.02488135,0.000118,2]
[330441999,1719412445255,4705.71516877,0.000118,2]
[330442000,1719412453453,5294.28483123,0.00011,2]
[330442001,1719412453483,4952.34350555,0.00011,2]
[330442002,1719412471224,5047.65649445,6.94e-05,2]
[330442003,1719412471246,8547.96201391,6.94e-05,2]
[330442004,1719412520131,1452.03798609,6.94e-05,2]
[330442005,1719412520158,10000.0,6.94e-05,2]
[330442006,1719412520181,8856.15563683,6.94e-05,2]
[330442007,1719412531376,166.38,0.00024826,120]
[330442018,1719413064855,155.0,0.00011237,2]
[330442024,1719413121128,988.84436317,0.00011799,2]
[330442025,1719413121151,3724.40524554,0.00011799,2]
[330442027,1719413145231,6275.59475446,0.00011237,2]
[330442028,1719413145648,10000.0,0.00011237,2]
[330442029,1719413145695,758.32666415,0.00011237,2]
[330442031,1719413179223,6221.87942226,0.00011799,2]
[330442036,1719413403411,150.0,0.00011799,2]
[330442037,1719413403635,150.0,0.00011799,2]
[330442038,1719413428659,2719.79391359,0.00011799,2]
[330442039,1719413432024,-718.42740746,0.00011799,2]
[330442042,1719413432036,-1112.66191342,0.00011799,2]
[330442044,1719413432045,-155.0,0.000123,2]
[330442046,1719413432054,-1012.12747658,0.00012661,2]
[330442048,1719413432063,-156.40393874,0.00012661,2]
[330442050,1719413432073,-242.03254915,0.00012991,2]
[330442052,1719413432082,-226.97511983,0.00013617,2]
[330442053,1719413432091,-717.18626309,0.0001372,2]
[330442055,1719413432100,-150.0,0.00013816,2]
[330442057,1719413432109,-492.4500946,0.00013869,2]
[330442059,1719413432118,-24552.64397228,0.0001387,2]
[330442060,1719413432130,-582.92504737,0.0001387,2]
[330442061,1719413432354,-7398.65345075,0.0001387,2]
[330442062,1719413432364,-173.73231677,0.00013881,2]
[330442063,1719413432374,-173.73231677,0.00013881,2]
[330442064,1719413432383,-668.78194366,0.00013899,2]
[330442065,1719413432392,-4627.93832705,0.00013917,2]
[330442066,1719413432405,-2766.0,0.00013917,2]
[330442067,1719413432416,-76766.89418247,0.00013917,2]
[330442068,1719413432427,-11125.8174685,0.00013917,2]
[330442069,1719413432439,-1137.0,0.00013917,2]
[330442070,1719413432450,-1324.76351156,0.00013917,2]
[330442071,1719413432492,-309.15374345,0.00013917,2]
[330442072,1719413432503,-571.61940899,0.00013917,2]
[330442073,1719413432515,-909.67996557,0.00013917,2]
[330442094,1719413438175,-4510.81999998,0.00013917,2]
[330442095,1719413438188,-108314.07609983,0.00013917,2]
[330442096,1719413438200,-379455.78083176,0.00013917,2]
[330442156,1719413440338,-579.47936993,0.00013899,2]
[330442158,1719413440348,-1277.10350987,0.00013917,2]
[330442159,1719413440359,-38933.55919592,0.00013917,2]
[330442405,1719413443311,-149.99999996,0.00013899,2]
[330442407,1719413443322,-170.54618692,0.00013899,2]
[330442411,1719413443535,-747.24381308,0.00013917,2]
[330442412,1719413443605,-1660.86364114,0.00013917,2]
[330442413,1719413443616,-384.43244733,0.00013917,2]
[330442414,1719413443627,-3193.54127917,0.00013917,2]
[330442430,1719413448340,-294.87759736,0.00013886,2]
[330442431,1719413448349,-10858.47125279,0.00013917,2]
[330442481,1719414199746,529.58,0.0001125,2]
[330442482,1719414264740,1463.04118436,0.0001125,2]
[330442483,1719414265559,226.97511983,0.00011099,2]
[330442484,1719414312401,1405.40369581,0.00011099,2]
[330442485,1719414362760,150.0,0.00010193,2]
[330442486,1719414362784,152.3204216,0.00010193,2]
[330442487,1719414362806,150.0,0.00010193,2]
[330442488,1719414362831,5769.55900066,0.00010193,2]
[330442491,1719414632678,-3556.21712772,0.00011785,2]
[330442494,1719414632691,-2665.66229454,0.00011785,2]
[330442496,1719414632701,-626.22116564,0.00012346,2]
[330442497,1719414632712,-3228.11653982,0.00012346,2]
[330442499,1719414632724,-551.29288503,0.00012346,2]
[330442500,1719414632735,-15829.10439717,0.00012346,2]
[330442501,1719414632746,-359.96997035,0.00012347,2]
[330442502,1719414632755,-200.0,0.00012618,2]
[330442503,1719414632764,-10594.18,0.00012633,2]
[330442504,1719414632774,-166.38,0.00012705,2]
[330442505,1719414632784,-271.89,0.00012705,3]
[330442506,1719414632794,-1000.0,0.00013109,2]
[330442507,1719414632804,-250.0,0.00013127,2]
[330442508,1719414632814,-153.24,0.00013171,2]
[330442509,1719414632823,-1759.24564848,0.00013171,2]
[330442510,1719414632836,-31135.56435152,0.00013171,2]
[330442511,1719414632846,-153.24,0.0001322,2]
[330442512,1719414632856,-369.21,0.0001322,2]
[330442513,1719414632866,-153.24,0.00013269,2]
[330442514,1719414632875,-153.24,0.00013318,2]
[330442515,1719414632886,-226.97511983,0.00013366,2]
[330442516,1719414632895,-153.24,0.00013367,2]
[330442517,1719414632911,-153.24,0.00013416,2]
[330442518,1719414632921,-153.24,0.00013465,2]
[330442519,1719414632931,-153.24,0.00013514,2]
[330442520,1719414632942,-529.58,0.00013514,2]
[330442521,1719414632951,-153.24,0.00013563,2]
[330442522,1719414632961,-153.24,0.00013612,2]
[330442523,1719414632971,-153.24,0.00013661,2]
[330442524,1719414632981,-10000.0,0.00013699,2]
[330442525,1719414632991,-278.79,0.00013699,2]
[330442526,1719414633000,-153.24,0.0001371,2]
[330442527,1719414633010,-173.73231677,0.00013758,2]
[330442528,1719414633019,-153.24,0.00013759,2]
[330442529,1719414633029,-1213.26579,0.0001378,2]
[330442530,1719414633038,-750.11218981,0.000138,2]
[330442531,1719414633047,-153.24,0.00013808,2]
[330442532,1719414633056,-2841.727,0.00013817,2]
[330442533,1719414633067,-1252.7833,0.00013817,2]
[330442534,1719414633076,-2550.0931,0.00013817,2]
[330442535,1719414633085,-274.6897,0.00013817,2]
[330442536,1719414633095,-35009.9324,0.00013817,2]
[330442537,1719414633104,-2206.48790942,0.00013833,2]
[330442538,1719414633114,-153.24,0.00013857,2]
[330442539,1719414633123,-698.4351,0.000139,2]
[330442540,1719414633133,-5854.2673,0.000139,2]
[330442541,1719414633143,-438.2805,0.000139,2]
[330442542,1719414633155,-17269.4566,0.000139,2]
[330442543,1719414633164,-4291.7394,0.000139,2]
[330442544,1719414633174,-585.18420072,0.000139,2]
[330442545,1719414633183,-100557.42188363,0.00013917,2]
[330442546,1719414633192,-3787.38361081,0.00013932,2]
[330442547,1719414633201,-176.81979758,0.00013933,2]
[330442548,1719414633211,-13982.69592968,0.00013933,2]
[330442549,1719414633220,-1429.93,0.00013935,2]
[330442550,1719414633230,-182.34674816,0.00013937,2]
[330442551,1719414633239,-18254.91537762,0.00013986,2]
[330442552,1719414633249,-156.75800946,0.0001399,2]
[330442553,1719414633259,-155.0,0.00013999,2]
[330442554,1719414633268,-425606.64847981,0.00014,2]
[330442555,1719414633280,-1610.9642997,0.00014,2]
[330442556,1719414633292,-656282.42350829,0.00014,2]
[330442557,1719414633306,-1135.31489135,0.00014,2]
[330442578,1719414638812,-155.0,0.00012344,2]
[330442580,1719414638823,-245.70578188,0.00013513,2]
[330442582,1719414638837,-471.48048121,0.00013513,2]
[330442583,1719414638848,-2674.8063324,0.00014,2]
[330442584,1719414638861,-666.23816241,0.00014,2]
[330442585,1719414638873,-300.0,0.00014,2]
[330442586,1719414638886,-288.81265547,0.00014,2]
[330442587,1719414638899,-27137.12940845,0.00014,2]
[330442589,1719414640452,-27804.48745662,0.00014,2]
[330442591,1719414642205,-761.15943174,0.00014,2]
[330442592,1719414642217,-300.1157942,0.00014,2]
[330442593,1719414642229,-419.75942651,0.00014,2]
[330442603,1719414643886,-655.16092701,0.00014,2]
[330442607,1719414643898,-136906.99231496,0.00014,2]
[330442609,1719414643912,-1000.0,0.00014,2]
[330442610,1719414643923,-23726.51714937,0.00014,2]
[330442611,1719414643934,-3587.94507457,0.00014,2]
[330442612,1719414643947,-1301.3,0.00014,2]
[330442613,1719414643959,-1138.50441589,0.00014,2]
[330442614,1719414643971,-501.02048023,0.00014,2]
[330442615,1719414643982,-621.91316261,0.00014,2]
[330442616,1719414643994,-399.19734691,0.00014,2]
[330442617,1719414644006,-1283.33901254,0.00014,2]
[330442618,1719414644017,-709.98364794,0.00014,2]
[330442619,1719414644029,-70858.30368196,0.00014,2]
[330442620,1719414644040,-2492.56313245,0.00014,2]
[330442621,1719414644052,-614.98003177,0.00014,2]
[330442622,1719414646667,-650.31679312,0.00014,2]
[330442626,1719414646678,-469.1702649,0.00014,2]
[330442628,1719414646690,-2759.37216379,0.00014,2]
[330442631,1719414646702,-337.08969517,0.00014,2]
[330442633,1719414646714,-21264.49106437,0.00014,2]
[330442635,1719414646726,-150500.0,0.00014,2]
[330442641,1719414646988,-613.53,0.00014,2]
[330442642,1719414647025,-602.00844115,0.00014,2]
[330442643,1719414647396,-1523.00718957,0.00014,2]
[330442644,1719414647407,-2787.44339086,0.00014,2]
[330442645,1719414647427,-377.33058206,0.00014,2]
[330442650,1719414761407,-255.75230339,0.00012027,2]
[330442651,1719414761431,-1726.13995127,0.00012347,2]
[330442652,1719414761456,-415.49090939,0.00013768,2]
[330442653,1719414761479,-150.0,0.0001386,2]
[330442654,1719414761502,-219.86,0.0001389,2]
[330442655,1719414761527,-175.20791801,0.000139,2]
[330442656,1719414761552,-25626.80357816,0.00013936,2]
[330442657,1719414761576,-594.06153952,0.00013937,2]
[330442658,1719414761600,-185.91377888,0.00013986,2]
[330442659,1719414761625,-155.74076896,0.00013986,2]
[330442660,1719414761648,-300.0,0.00013998,2]